[Event "ARM-ch Club 2018"]
[Site "Yerevan"]
[Date "2018.06.10"]
[Round "3"]
[White "Petrosian, Davit G"]
[Black "Danielyan, Vahe"]
[Result "1-0"]
[ECO "B05"]
[WhiteElo "2400"]
[BlackElo "2387"]
[Annotator "ChessBase"]
[PlyCount "105"]
[EventDate "2018.??.??"]
[EventCountry "ARM"]
[SourceTitle "playchess.com"]
[Source "ChessBase"]
[SourceQuality "1"]
[TimeControl "5400+30"]

1. e4 {[%emt 0:01:25]} Nf6 {[%emt 0:00:17]} 2. e5 {[%emt 0:02:41]} Nd5 {[%emt 0:00:17]} 3. d4 {[%emt 0:03:22]} d6 {[%emt 0:00:13]} 4. Nf3 {[%emt 0:01:36]} Bg4 {[%emt 0:00:38]} 5. Be2 {[%emt 0:00:35]} Nc6 {[%emt 0:03:42]} 6. c4 {[%emt 0:01:10]} Nb6 {[%emt 0:07:47]} 7. e6 {[%emt 0:00:17]} fxe6 {[%emt 0:00:53]} 8. Nc3 {[%emt 0:13:37]} Bxf3 {[%emt 0:10:53]} 9. Bxf3 {[%emt 0:00:40]} g6 {[%emt 0:00:04]} 10. Bg4 {[%emt 0:14:49]} Bg7 {[%emt 0:01:11]} 11. d5 {[%emt 0:15:02]} Nd4 {[%emt 0:00:23]} 12. Ne2 {[%emt 0:00:27]} Nxe2 {[%emt 0:06:25]} 13. Qxe2 {[%emt 0:00:59]} e5 {[%emt 0:02:09]} 14. h4 {[%emt 0:05:19]} Bf6 {[%emt 0:03:26]} 15. h5 {[%emt 0:03:02]} g5 {[%emt 0:00:05]} 16. Be6 {[%emt 0:05:51]} h6 {[%emt 0:01:34]} 17. Qe4 {[%emt 0:03:40]} Kf8 {[%emt 0:01:04]} 18. Be3 {[%emt 0:01:24]} Qe8 {[%emt 0:00:57]} 19. O-O-O {[%emt 0:04:27]} Kg7 {[%emt 0:01:41]} 20. g3 {[%emt 0:07:27]} Nd7 {[%emt 0:00:18]} 21. Bxd7 {[%emt 0:06:33]} Qxd7 {[%emt 0:00:07]} 22. f4 {[%emt 0:00:01]} Rag8 {[%emt 0:02:11]} 23. fxg5 {[%emt 0:00:50]} hxg5 {[%emt 0:00:34]} 24. g4 {[%emt 0:01:54]} Kh6 {[%emt 0:00:24]} 25. Rdf1 {[%emt 0:01:00]} Rh7 {[%emt 0:02:51]} 26. Rf5 {[%emt 0:00:11]} Rhg7 {[%emt 0:02:06]} 27. Rhf1 {[%emt 0:00:10]} Qd8 {[%emt 0:00:25]} 28. Kb1 {[%emt 0:00:02]} a6 {[%emt 0:00:53]} 29. R1f2 {[%emt 0:00:21]} c6 {[%emt 0:03:40]} 30. dxc6 {[%emt 0:02:46]} bxc6 {[%emt 0:00:27]} 31. Qxc6 {[%emt 0:00:02]} Qa8 {[%emt 0:01:49]} 32. Rxf6+ {[%emt 0:02:22]} exf6 {[%emt 0:00:20]} 33. Rxf6+ {[%emt 0:00:03]} Kh7 {[%emt 0:00:14]} 34. Qxa8 {[%emt 0:00:25]} Rxa8 {[%emt 0:00:04]} 35. Rxd6 {[%emt 0:00:16]} Rf7 {[%emt 0:07:14]} 36. Bxg5 {[%emt 0:00:51]} e4 {[%emt 0:01:48]} 37. Bf6 {[%emt 0:00:50]} Kh6 {[%emt 0:03:48]} 38. Re6 {[%emt 0:00:23]} e3 {[%emt 0:01:38]} 39. g5+ {[%emt 0:01:58]} Kxh5 {[%emt 0:00:24]} 40. Rxe3 {[%emt 0:00:14]} a5 {[%emt 0:01:28]} 41. Kc2 {[%emt 0:00:10]} a4 {[%emt 0:00:06]} 42. b4 {[%emt 0:00:50]} Kg6 {[%emt 0:04:02]} 43. b5 {[%emt 0:00:38]} Rh7 {[%emt 0:00:06]} 44. Kc3 {[%emt 0:00:39]} Rc8 {[%emt 0:02:58]} 45. Kb4 {[%emt 0:00:24]} Rh4 {[%emt 0:00:18]} 46. Rc3 {[%emt 0:00:08]} Rh2 {[%emt 0:00:02]} 47. a3 {[%emt 0:00:42]} Rb2+ {[%emt 0:00:12]} 48. Ka5 {[%emt 0:00:04]} Ra8+ {[%emt 0:00:37]} 49. Kb6 {[%emt 0:00:02]} Rf8 {[%emt 0:00:52]} 50. Kc7 {[%emt 0:01:08]} Rf7+ {[%emt 0:00:13]} 51. Kc6 {[%emt 0:00:58]} Rb3 {[%emt 0:00:25]} 52. Rxb3 {[%emt 0:00:16]} axb3 {[%emt 0:00:04]} 53. Bb2 {[%emt 0:00:03]} 1-0

[Event "ARM-ch Club 2018"]
[Site "Yerevan"]
[Date "2018.06.10"]
[Round "3"]
[White "Bakunts, Rafael"]
[Black "Baghdasaryan, Vahe"]
[Result "1-0"]
[ECO "B40"]
[WhiteElo "2395"]
[BlackElo "2406"]
[Annotator "ChessBase"]
[PlyCount "69"]
[EventDate "2018.??.??"]
[EventCountry "ARM"]
[SourceTitle "playchess.com"]
[Source "ChessBase"]
[SourceQuality "1"]
[TimeControl "5400+30"]

1. e4 {[%emt 0:03:45]} c5 {[%emt 0:00:50]} 2. Nf3 {[%emt 0:00:19]} e6 {[%emt 0:00:42]} 3. g3 {[%emt 0:02:02]} Nc6 {[%emt 0:00:50]} 4. Bg2 {[%emt 0:00:31]} Nf6 {[%emt 0:00:50]} 5. Qe2 {[%emt 0:01:20]} e5 {[%emt 0:04:21]} 6. d3 {[%emt 0:08:10]} Be7 {[%emt 0:00:49]} 7. c3 {[%emt 0:02:40]} O-O {[%emt 0:01:38]} 8. O-O {[%emt 0:00:23]} d6 {[%emt 0:01:04]} 9. a3 {[%emt 0:00:17]} a5 {[%emt 0:00:53]} 10. a4 {[%emt 0:00:14]} h6 {[%emt 0:00:09]} 11. Na3 {[%emt 0:00:19]} Bg4 {[%emt 0:00:12]} 12. Nc4 {[%emt 0:00:33]} Nh7 {[%emt 0:02:18]} 13. h3 {[%emt 0:07:07]} Be6 {[%emt 0:04:56]} 14. Nh2 {[%emt 0:08:38]} f5 {[%emt 0:16:20]} 15. exf5 {[%emt 0:03:17]} Bxf5 {[%emt 0:00:15]} 16. f4 {[%emt 0:00:48]} exf4 {[%emt 0:03:06]} 17. Bxf4 {[%emt 0:00:59]} Kh8 {[%emt 0:29:45]} 18. Rae1 {[%emt 0:04:17]} d5 {[%emt 0:02:03]} 19. Ne5 {[%emt 0:09:33]} Bd6 {[%emt 0:08:44]} 20. Nhf3 {[%emt 0:04:20]} Nxe5 {[%emt 0:08:02]} 21. Nxe5 {[%emt 0:00:45]} Bxe5 {[%emt 0:00:14]} 22. Bxe5 {[%emt 0:03:59]} Ng5 {[%emt 0:10:21]} 23. g4 {[%emt 0:05:23]} Bg6 {[%emt 0:00:30]} 24. Rxf8+ {[%emt 0:02:13]} Qxf8 {[%emt 0:00:08]} 25. h4 {[%emt 0:00:12]} Nf7 {[%emt 0:00:05]} 26. Bg3 {[%emt 0:00:07]} c4 {[%emt 0:02:42]} 27. dxc4 {[%emt 0:01:09]} Qc5+ {[%emt 0:00:21]} 28. Bf2 {[%emt 0:00:43]} Qxc4 {[%emt 0:00:08]} 29. Qxc4 {[%emt 0:01:40]} dxc4 {[%emt 0:00:02]} 30. Re7 {[%emt 0:00:11]} h5 {[%emt 0:01:08]} 31. Bd5 {[%emt 0:00:46]} Kg8 {[%emt 0:01:21]} 32. gxh5 {[%emt 0:00:47]} Bxh5 {[%emt 0:00:06]} 33. Re5 {[%emt 0:01:24]} Bg4 {[%emt 0:01:30]} 34. Rg5 {[%emt 0:01:07]} Be2 {[%emt 0:00:05]} 35. Rf5 {[%emt 0:01:12]} 1-0

[Event "ARM-ch Club 2018"]
[Site "Yerevan"]
[Date "2018.06.10"]
[Round "3"]
[White "Kalantaryan, Norayr"]
[Black "Davtyan, Artur"]
[Result "1/2-1/2"]
[ECO "D31"]
[WhiteElo "2381"]
[BlackElo "2349"]
[Annotator "NA"]
[PlyCount "103"]
[EventDate "2018.??.??"]
[EventCountry "ARM"]
[SourceTitle "playchess.com"]
[Source "ChessBase"]
[SourceQuality "1"]
[TimeControl "5400+30"]

1. d4 {[%emt 0:00:00]} d5 {[%emt 0:00:05]} 2. c4 {[%emt 0:00:00]} e6 {[%emt 0:00:03]} 3. Nc3 {[%emt 0:00:00]} Be7 {[%emt 0:00:04]} 4. cxd5 {[%emt 0:00:37]} exd5 {[%emt 0:00:02]} 5. Bf4 {[%emt 0:00:08]} c6 {[%emt 0:00:03]} 6. e3 {[%emt 0:00:05]} Bf5 {[%emt 0:00:29]} 7. Bd3 {[%emt 0:02:24]} Bxd3 {[%emt 0:00:24]} 8. Qxd3 {[%emt 0:00:06]} Nf6 {[%emt 0:00:12]} 9. Nf3 {[%emt 0:00:14]} Nbd7 {[%emt 0:00:38]} 10. O-O {[%emt 0:00:26]} O-O {[%emt 0:03:10]} 11. h3 {[%emt 0:02:23]} Re8 {[%emt 0:00:27]} 12. Ne5 {[%emt 0:02:30]} Bf8 {[%emt 0:04:27]} 13. Rad1 {[%emt 0:02:22]} Re6 {[%emt 0:13:14]} 14. Bh2 {[%emt 0:06:55]} Bd6 {[%emt 0:09:49]} 15. f4 {[%emt 0:05:21]} Re8 {[%emt 0:09:47]} 16. g4 {[%emt 0:04:53]} Qe7 {[%emt 0:12:34]} 17. g5 {[%emt 0:08:48]} Ne4 {[%emt 0:17:23]} 18. Nxe4 {[%emt 0:01:36]} dxe4 {[%emt 0:00:03]} 19. Qxe4 {[%emt 0:15:08]} f6 {[%emt 0:00:07]} 20. gxf6 {[%emt 0:08:00]} gxf6 {[%emt 0:00:09]} 21. Nxd7 {[%emt 0:00:32]} Qxd7 {[%emt 0:00:02]} 22. Qf3 {[%emt 0:00:05]} Qf5 {[%emt 0:02:33]} 23. Rfe1 {[%emt 0:04:42]} Re4 {[%emt 0:06:54]} 24. Qg4+ {[%emt 0:02:16]} Qg6 {[%emt 0:02:46]} 25. Bg3 {[%emt 0:04:52]} Kf7 {[%emt 0:03:42]} 26. Kg2 {[%emt 0:02:04]} f5 {[%emt 0:00:37]} 27. Qxg6+ {[%emt 0:00:11]} hxg6 {[%emt 0:00:07]} 28. Kf3 {[%emt 0:01:12]} Rh8 {[%emt 0:01:34]} 29. h4 {[%emt 0:00:44]} Be7 {[%emt 0:07:30]} 30. Rh1 {[%emt 0:00:12]} Ke6 {[%emt 0:02:41]} 31. Bf2 {[%emt 0:00:28]} Kd5 {[%emt 0:01:22]} 32. Rdg1 {[%emt 0:10:43]} Re6 {[%emt 0:00:01]} 33. Rc1 {[%emt 0:00:29]} Rh7 {[%emt 0:01:16]} 34. Bg3 {[%emt 0:00:37]} Rh8 {[%emt 0:01:15]} 35. Rh2 {[%emt 0:00:07]} Rh5 {[%emt 0:00:44]} 36. Rc3 {[%emt 0:00:34]} Rh7 {[%emt 0:00:15]} 37. Rb3 {[%emt 0:00:26]} b6 {[%emt 0:01:59]} 38. Rc3 {[%emt 0:00:27]} Bb4 {[%emt 0:00:01]} 39. Rc1 {[%emt 0:00:35]} Be7 {[%emt 0:00:47]} 40. a3 {[%emt 0:01:38]} Rh8 {[%emt 0:00:38]} 41. b4 {[%emt 0:01:12]} Rh7 {[%emt 0:00:34]} 42. Rb1 {[%emt 0:00:35]} a6 {[%emt 0:00:04]} 43. Rbb2 {[%emt 0:04:14]} Rh8 {[%emt 0:00:08]} 44. Be1 {[%emt 0:00:06]} Bd8 {[%emt 0:01:13]} 45. a4 {[%emt 0:01:50]} b5 {[%emt 0:00:35]} 46. axb5 {[%emt 0:02:19]} axb5 {[%emt 0:00:23]} 47. Ra2 {[%emt 0:00:26]} Rhe8 {[%emt 0:00:37]} 48. Rhe2 {[%emt 0:02:31]} Bb6 {[%emt 0:00:29]} 49. Bf2 {[%emt 0:01:29]} Bc7 {[%emt 0:00:28]} 50. Ra3 {[%emt 0:01:44]} Bd6 {[%emt 0:00:01]} 51. Be1 {[%emt 0:00:10]} Re4 {[%emt 0:00:16]} 52. Raa2 {[%emt 0:00:37]} 1/2-1/2